[Event "*** Titled Tuesday Blitz"]
[Site "Chess.com"]
[Date "2021.03.30"]
[Round "7"]
[White "InitiatingASC"]
[Black "As0nchess"]
[Result "1/2-1/2"]
[WhiteElo "2443"]
[BlackElo "2612"]
[TimeControl "180+1"]
[EndTime "11:17:36 PDT"]
[Termination "Game drawn by agreement"]

1. d4 {[%clk 0:03:00.9]} 1... Nf6 {[%clk 0:02:59.7]} 2. c4 {[%clk 0:03:00]} 2...
e6 {[%clk 0:02:59.9]} 3. Nc3 {[%clk 0:02:59.9]} 3... Bb4 {[%clk 0:02:59.5]} 4.
e3 {[%clk 0:02:59.6]} 4... O-O {[%clk 0:02:57.8]} 5. Bd3 {[%clk 0:02:59.9]} 5...
d5 {[%clk 0:02:56]} 6. Nf3 {[%clk 0:02:59.2]} 6... dxc4 {[%clk 0:02:52.9]} 7.
Bxc4 {[%clk 0:03:00.1]} 7... c5 {[%clk 0:02:53.8]} 8. O-O {[%clk 0:03:00]} 8...
cxd4 {[%clk 0:02:54.1]} 9. exd4 {[%clk 0:03:00.9]} 9... b6 {[%clk 0:02:54.4]}
10. a3 {[%clk 0:02:59.8]} 10... Bxc3 {[%clk 0:02:54.1]} 11. bxc3 {[%clk
0:03:00.4]} 11... Nc6 {[%clk 0:02:47.8]} 12. Bd3 {[%clk 0:02:59.5]} 12... Bb7
{[%clk 0:02:45.8]} 13. c4 {[%clk 0:03:00]} 13... Rc8 {[%clk 0:02:39]} 14. Bb2
{[%clk 0:03:00]} 14... Na5 {[%clk 0:02:34.2]} 15. Rc1 {[%clk 0:02:59.8]} 15...
Be4 {[%clk 0:02:31.6]} 16. Ne5 {[%clk 0:02:46.1]} 16... Bxd3 {[%clk 0:02:30.5]}
17. Qxd3 {[%clk 0:02:42.9]} 17... Nd7 {[%clk 0:02:30.4]} 18. d5 {[%clk
0:02:39.5]} 18... Nxe5 {[%clk 0:02:28.7]} 19. Bxe5 {[%clk 0:02:39.2]} 19... exd5
{[%clk 0:02:28.3]} 20. cxd5 {[%clk 0:02:37.5]} 20... Qd7 {[%clk 0:02:26.1]} 21.
Qg3 {[%clk 0:01:59.9]} 21... f6 {[%clk 0:02:22.7]} 22. Rxc8 {[%clk 0:01:55]}
22... Qxc8 {[%clk 0:02:23.6]} 23. Bd6 {[%clk 0:01:53.5]} 23... Rd8 {[%clk
0:02:21.9]} 24. Re1 {[%clk 0:01:47.5]} 24... Qf5 {[%clk 0:01:53.6]} 25. h4
{[%clk 0:01:37.5]} 25... Nc4 {[%clk 0:01:37.9]} 26. Re7 {[%clk 0:01:01.9]} 26...
Qg6 {[%clk 0:01:37.3]} 27. Qxg6 {[%clk 0:00:36.9]} 27... hxg6 {[%clk 0:01:38.2]}
28. Bg3 {[%clk 0:00:31.2]} 28... Rxd5 {[%clk 0:01:34.6]} 29. Rxa7 {[%clk
0:00:31.3]} 29... Ra5 {[%clk 0:01:33.8]} 30. Rxa5 {[%clk 0:00:29.4]} 30... bxa5
{[%clk 0:01:34.7]} 31. a4 {[%clk 0:00:30.1]} 31... Kf7 {[%clk 0:01:34.1]} 32. f3
{[%clk 0:00:28.6]} 32... Ke6 {[%clk 0:01:33.8]} 33. Bc7 {[%clk 0:00:20.8]} 33...
Kd5 {[%clk 0:01:33.6]} 34. Bd8 {[%clk 0:00:20]} 34... f5 {[%clk 0:01:22.2]} 35.
Be7 {[%clk 0:00:17.8]} 35... Nb2 {[%clk 0:01:16.5]} 36. Bd8 {[%clk 0:00:16.3]}
36... Nc4 {[%clk 0:01:16.4]} 37. Be7 {[%clk 0:00:16.2]} 37... Kd4 {[%clk
0:01:15.2]} 38. Bf8 {[%clk 0:00:15.7]} 38... Kc3 {[%clk 0:01:15.5]} 39. Bxg7+
{[%clk 0:00:15.5]} 39... Kb3 {[%clk 0:01:16]} 40. g4 {[%clk 0:00:15.9]} 40...
fxg4 {[%clk 0:01:16]} 41. fxg4 {[%clk 0:00:16.1]} 41... Kxa4 {[%clk 0:01:15.8]}
42. h5 {[%clk 0:00:16.3]} 42... gxh5 {[%clk 0:01:16.1]} 43. gxh5 {[%clk
0:00:16.2]} 43... Nd6 {[%clk 0:01:15.8]} 44. h6 {[%clk 0:00:13.2]} 44... Nf7
{[%clk 0:01:15.8]} 45. h7 {[%clk 0:00:13.5]} 1/2-1/2

[Event "*** Titled Tuesday Blitz"]
[Site "Chess.com"]
[Date "2021.03.30"]
[Round "7"]
[White "Horizonevent"]
[Black "zacachess"]
[Result "1-0"]
[WhiteElo "2526"]
[BlackElo "2389"]
[TimeControl "180+1"]
[EndTime "11:17:37 PDT"]
[Termination "Horizonevent won by checkmate"]

1. e4 {[%clk 0:03:00.9]} 1... c5 {[%clk 0:02:57.5]} 2. Nf3 {[%clk 0:03:00.1]}
2... d6 {[%clk 0:02:57.7]} 3. d4 {[%clk 0:03:00.7]} 3... cxd4 {[%clk 0:02:58.6]}
4. Nxd4 {[%clk 0:03:01.4]} 4... Nf6 {[%clk 0:02:59.2]} 5. Nc3 {[%clk 0:03:00.9]}
5... a6 {[%clk 0:02:59.5]} 6. g3 {[%clk 0:03:01.3]} 6... e5 {[%clk 0:02:58.1]}
7. Nde2 {[%clk 0:03:00.3]} 7... Be7 {[%clk 0:02:57.4]} 8. Bg2 {[%clk 0:02:59.9]}
8... Nbd7 {[%clk 0:02:56.7]} 9. a4 {[%clk 0:02:59.8]} 9... b6 {[%clk 0:02:56.8]}
10. O-O {[%clk 0:02:59.5]} 10... O-O {[%clk 0:02:56.4]} 11. h3 {[%clk
0:02:59.7]} 11... Bb7 {[%clk 0:02:56.2]} 12. g4 {[%clk 0:02:59.8]} 12... Nc5
{[%clk 0:02:46.3]} 13. Ng3 {[%clk 0:02:59.4]} 13... g6 {[%clk 0:02:46.1]} 14. f4
{[%clk 0:02:58.3]} 14... exf4 {[%clk 0:02:34.5]} 15. Bxf4 {[%clk 0:02:56.8]}
15... Ne6 {[%clk 0:02:34.9]} 16. Bh6 {[%clk 0:02:53.4]} 16... Re8 {[%clk
0:02:34.5]} 17. Nf5 {[%clk 0:02:38.7]} 17... gxf5 {[%clk 0:02:09.6]} 18. gxf5
{[%clk 0:02:37.2]} 18... Nc5 {[%clk 0:02:00.7]} 19. Rf4 {[%clk 0:01:55.5]} 19...
Kh8 {[%clk 0:01:54.7]} 20. Qd4 {[%clk 0:01:40.2]} 20... Rg8 {[%clk 0:01:45.2]}
21. Kh1 {[%clk 0:01:39.1]} 21... Nd7 {[%clk 0:01:25.9]} 22. Rh4 {[%clk
0:01:19.8]} 22... Ne5 {[%clk 0:01:21.5]} 23. Bf4 {[%clk 0:01:09.9]} 23... Nfd7
{[%clk 0:01:12.6]} 24. Rh5 {[%clk 0:00:59.9]} 24... Qc7 {[%clk 0:00:45.6]} 25.
Rg1 {[%clk 0:00:50.1]} 25... Bf6 {[%clk 0:00:42.5]} 26. Qd1 {[%clk 0:00:25.3]}
26... Rg7 {[%clk 0:00:32.6]} 27. Bh6 {[%clk 0:00:24.7]} 27... Rgg8 {[%clk
0:00:33]} 28. Bf4 {[%clk 0:00:25]} 28... Rad8 {[%clk 0:00:25.7]} 29. Rxh7+
{[%clk 0:00:24.4]} 29... Kxh7 {[%clk 0:00:19.2]} 30. Qh5+ {[%clk 0:00:25.3]}
30... Kg7 {[%clk 0:00:19]} 31. Qh6# {[%clk 0:00:24.3]} 1-0

[Event "*** Titled Tuesday Blitz"]
[Site "Chess.com"]
[Date "2021.03.30"]
[Round "7"]
[White "Kislov_Oleg"]
[Black "lacafi"]
[Result "1-0"]
[WhiteElo "2485"]
[BlackElo "2227"]
[TimeControl "180+1"]
[EndTime "11:17:37 PDT"]
[Termination "Kislov_Oleg won by resignation"]

1. e4 {[%clk 0:03:00.9]} 1... c6 {[%clk 0:03:00]} 2. d4 {[%clk 0:03:00.6]} 2...
d5 {[%clk 0:03:00.7]} 3. Nc3 {[%clk 0:03:00.8]} 3... dxe4 {[%clk 0:03:01.6]} 4.
Nxe4 {[%clk 0:03:01.7]} 4... Nf6 {[%clk 0:03:02.3]} 5. Nxf6+ {[%clk 0:03:01.8]}
5... exf6 {[%clk 0:03:03.2]} 6. c3 {[%clk 0:03:01.3]} 6... Bd6 {[%clk
0:03:03.1]} 7. Bd3 {[%clk 0:02:57.6]} 7... O-O {[%clk 0:03:03.2]} 8. Qc2 {[%clk
0:02:57.5]} 8... h5 {[%clk 0:02:55.1]} 9. Ne2 {[%clk 0:02:56.9]} 9... Re8 {[%clk
0:02:54]} 10. Be3 {[%clk 0:02:55]} 10... Nd7 {[%clk 0:02:51.5]} 11. O-O-O {[%clk
0:02:51.4]} 11... Nf8 {[%clk 0:02:51.6]} 12. h3 {[%clk 0:02:31.6]} 12... Be6
{[%clk 0:02:44]} 13. Kb1 {[%clk 0:02:30.8]} 13... b5 {[%clk 0:02:04.5]} 14. Nf4
{[%clk 0:02:25.8]} 14... Bxf4 {[%clk 0:01:58.5]} 15. Bxf4 {[%clk 0:02:26.7]}
15... Bd5 {[%clk 0:01:50.6]} 16. Rhg1 {[%clk 0:02:22.2]} 16... Ne6 {[%clk
0:01:48.6]} 17. Be3 {[%clk 0:02:15.3]} 17... Qa5 {[%clk 0:01:41]} 18. b3 {[%clk
0:02:04.4]} 18... Ng5 {[%clk 0:01:21.9]} 19. Bxg5 {[%clk 0:01:55.8]} 19... fxg5
{[%clk 0:01:21.8]} 20. f3 {[%clk 0:01:48.9]} 20... Qc7 {[%clk 0:01:14.3]} 21.
Qf2 {[%clk 0:01:33.9]} 21... a5 {[%clk 0:01:08.9]} 22. Rge1 {[%clk 0:01:27]}
22... a4 {[%clk 0:01:03.2]} 23. b4 {[%clk 0:01:26.9]} 23... Qf4 {[%clk
0:00:55.6]} 24. Rxe8+ {[%clk 0:01:19.1]} 24... Rxe8 {[%clk 0:00:55.1]} 25. Re1
{[%clk 0:01:19.4]} 25... Rxe1+ {[%clk 0:00:51]} 26. Qxe1 {[%clk 0:01:18.9]}
26... g6 {[%clk 0:00:45.2]} 27. Be4 {[%clk 0:01:08.8]} 27... Bxe4+ {[%clk
0:00:32]} 28. Qxe4 {[%clk 0:00:59.5]} 28... Qxe4+ {[%clk 0:00:29.9]} 29. fxe4
{[%clk 0:00:58.9]} 29... f5 {[%clk 0:00:28.5]} 30. c4 {[%clk 0:00:53]} 30...
fxe4 {[%clk 0:00:25.6]} 31. d5 {[%clk 0:00:50.5]} 31... Kf7 {[%clk 0:00:15.3]}
32. dxc6 {[%clk 0:00:47.5]} 32... Ke7 {[%clk 0:00:14.9]} 33. cxb5 {[%clk
0:00:45.9]} 33... Kd6 {[%clk 0:00:12.4]} 34. Kc2 {[%clk 0:00:45.4]} 34... g4
{[%clk 0:00:12.2]} 35. hxg4 {[%clk 0:00:41.9]} 35... hxg4 {[%clk 0:00:11.6]} 36.
Kd2 {[%clk 0:00:42]} 1-0

[Event "*** Titled Tuesday Blitz"]
[Site "Chess.com"]
[Date "2021.03.30"]
[Round "7"]
[White "SoldierOfGod1"]
[Black "Eloist"]
[Result "0-1"]
[WhiteElo "2489"]
[BlackElo "2351"]
[TimeControl "180+1"]
[EndTime "11:17:37 PDT"]
[Termination "Eloist won by resignation"]

1. c4 {[%clk 0:03:00.9]} 1... e5 {[%clk 0:02:59.2]} 2. Nc3 {[%clk 0:03:01.2]}
2... Nf6 {[%clk 0:02:59.4]} 3. Nf3 {[%clk 0:03:02]} 3... Nc6 {[%clk 0:02:59.7]}
4. e3 {[%clk 0:03:02.8]} 4... Bb4 {[%clk 0:02:59.3]} 5. Qc2 {[%clk 0:03:03.2]}
5... d6 {[%clk 0:02:58.6]} 6. Nd5 {[%clk 0:03:02.1]} 6... Bc5 {[%clk 0:02:56.7]}
7. a3 {[%clk 0:03:02.5]} 7... Bb6 {[%clk 0:02:56.4]} 8. b4 {[%clk 0:03:00.9]}
8... Nxd5 {[%clk 0:02:55.9]} 9. cxd5 {[%clk 0:03:01.1]} 9... Ne7 {[%clk
0:02:56.3]} 10. e4 {[%clk 0:03:01.6]} 10... O-O {[%clk 0:02:55.3]} 11. Bb2
{[%clk 0:03:01.6]} 11... f5 {[%clk 0:02:52.5]} 12. d3 {[%clk 0:03:01.6]} 12...
fxe4 {[%clk 0:02:39.8]} 13. dxe4 {[%clk 0:02:56.9]} 13... a5 {[%clk 0:02:35.9]}
14. b5 {[%clk 0:02:55.1]} 14... a4 {[%clk 0:02:29.8]} 15. Be2 {[%clk 0:02:51.6]}
15... Ng6 {[%clk 0:02:25]} 16. Bc1 {[%clk 0:02:33.8]} 16... Nf4 {[%clk 0:02:18]}
17. Bxf4 {[%clk 0:02:30.6]} 17... Rxf4 {[%clk 0:02:17.6]} 18. g3 {[%clk
0:02:17]} 18... Rf6 {[%clk 0:02:07.2]} 19. O-O-O {[%clk 0:02:01]} 19... Bg4
{[%clk 0:01:59.7]} 20. Qd3 {[%clk 0:01:39.7]} 20... Bxf2 {[%clk 0:01:24]} 21.
Rhf1 {[%clk 0:01:37.2]} 21... Bc5 {[%clk 0:01:20.8]} 22. Nh4 {[%clk 0:01:31.5]}
22... Bxe2 {[%clk 0:01:06.1]} 23. Qxe2 {[%clk 0:01:32.4]} 23... Bxa3+ {[%clk
0:01:06.1]} 24. Kb1 {[%clk 0:01:33.1]} 24... Bc5 {[%clk 0:01:04.5]} 25. Nf5
{[%clk 0:01:29.4]} 25... a3 {[%clk 0:00:59.1]} 26. Ka2 {[%clk 0:01:29]} 26... g6
{[%clk 0:00:52.9]} 27. Qg4 {[%clk 0:01:26.5]} 27... Qf8 {[%clk 0:00:42.7]} 28.
h4 {[%clk 0:01:13.4]} 28... Kh8 {[%clk 0:00:42.2]} 29. Qg5 {[%clk 0:00:35.5]}
29... gxf5 {[%clk 0:00:38.6]} 30. exf5 {[%clk 0:00:36.4]} 30... Qf7 {[%clk
0:00:36.5]} 31. Qg4 {[%clk 0:00:35.3]} 31... Rg8 {[%clk 0:00:34.1]} 32. Qf3
{[%clk 0:00:36]} 32... Qg7 {[%clk 0:00:27.8]} 33. Rd3 {[%clk 0:00:36.2]} 33...
Qg4 {[%clk 0:00:27.2]} 34. Qh1 {[%clk 0:00:33.3]} 34... Qc4+ {[%clk 0:00:26.1]}
35. Rb3 {[%clk 0:00:29.7]} 35... Qc2+ {[%clk 0:00:25.9]} 0-1

[Event "*** Titled Tuesday Blitz"]
[Site "Chess.com"]
[Date "2021.03.30"]
[Round "7"]
[White "Sweafty"]
[Black "frederiksvane"]
[Result "0-1"]
[WhiteElo "2549"]
[BlackElo "2701"]
[TimeControl "180+1"]
[EndTime "11:17:38 PDT"]
[Termination "frederiksvane won by resignation"]

1. Nf3 {[%clk 0:02:55.2]} 1... c5 {[%clk 0:02:59.7]} 2. c4 {[%clk 0:02:55.7]}
2... Nc6 {[%clk 0:02:59.5]} 3. b3 {[%clk 0:02:54.3]} 3... e5 {[%clk 0:02:58.2]}
4. Bb2 {[%clk 0:02:49.1]} 4... d6 {[%clk 0:02:57.9]} 5. Nc3 {[%clk 0:02:49.1]}
5... g6 {[%clk 0:02:55.2]} 6. g3 {[%clk 0:02:45.6]} 6... Bg7 {[%clk 0:02:55]} 7.
d3 {[%clk 0:02:45.4]} 7... Nge7 {[%clk 0:02:55.2]} 8. Bg2 {[%clk 0:02:46]} 8...
O-O {[%clk 0:02:55.2]} 9. O-O {[%clk 0:02:46.8]} 9... h6 {[%clk 0:02:50.6]} 10.
Ne1 {[%clk 0:02:46.2]} 10... Be6 {[%clk 0:02:43.5]} 11. Nc2 {[%clk 0:02:46.3]}
11... d5 {[%clk 0:02:43.4]} 12. cxd5 {[%clk 0:02:44.1]} 12... Nxd5 {[%clk
0:02:44.3]} 13. Ne3 {[%clk 0:02:41.3]} 13... Nxc3 {[%clk 0:02:39.2]} 14. Bxc3
{[%clk 0:02:40.5]} 14... Rc8 {[%clk 0:02:39.6]} 15. a4 {[%clk 0:02:32.4]} 15...
b6 {[%clk 0:02:32.2]} 16. Nc4 {[%clk 0:02:31.2]} 16... Qd7 {[%clk 0:02:06.7]}
17. Re1 {[%clk 0:02:19.2]} 17... Rfe8 {[%clk 0:01:55.6]} 18. Qc1 {[%clk
0:02:12.3]} 18... Bd5 {[%clk 0:01:44.4]} 19. Qb2 {[%clk 0:01:56]} 19... Nd4
{[%clk 0:01:43.4]} 20. Bxd5 {[%clk 0:01:17.3]} 20... Qxd5 {[%clk 0:01:41.2]} 21.
e4 {[%clk 0:01:17.7]} 21... Nf3+ {[%clk 0:01:22.1]} 22. Kh1 {[%clk 0:01:06.6]}
22... Qe6 {[%clk 0:01:20.9]} 23. Re3 {[%clk 0:01:04.7]} 23... Nd4 {[%clk
0:01:20.9]} 24. Bxd4 {[%clk 0:01:02.5]} 24... exd4 {[%clk 0:01:20.6]} 25. Ree1
{[%clk 0:01:02.3]} 25... a6 {[%clk 0:01:18.5]} 26. a5 {[%clk 0:00:58.6]} 26...
b5 {[%clk 0:01:14.7]} 27. Nb6 {[%clk 0:00:58.6]} 27... Rc6 {[%clk 0:01:14.1]}
28. Rac1 {[%clk 0:00:54.2]} 28... h5 {[%clk 0:01:09.4]} 29. Qc2 {[%clk
0:00:38.1]} 29... h4 {[%clk 0:01:05.5]} 30. b4 {[%clk 0:00:37]} 30... c4 {[%clk
0:01:00.5]} 31. dxc4 {[%clk 0:00:36.9]} 31... bxc4 {[%clk 0:01:00.5]} 32. Red1
{[%clk 0:00:11.3]} 32... d3 {[%clk 0:00:56.6]} 33. Rxd3 {[%clk 0:00:10.7]} 33...
cxd3 {[%clk 0:00:42.7]} 34. Qxc6 {[%clk 0:00:11.6]} 34... d2 {[%clk 0:00:43.6]}
0-1

[Event "*** Titled Tuesday Blitz"]
[Site "Chess.com"]
[Date "2021.03.30"]
[Round "7"]
[White "pavelalexandru07"]
[Black "UCantHandleDenker"]
[Result "0-1"]
[WhiteElo "2295"]
[BlackElo "2524"]
[TimeControl "180+1"]
[EndTime "11:17:38 PDT"]
[Termination "UCantHandleDenker won by resignation"]

1. d4 {[%clk 0:02:54.5]} 1... d6 {[%clk 0:03:00.9]} 2. e4 {[%clk 0:02:53.8]}
2... Nf6 {[%clk 0:03:01.3]} 3. Nc3 {[%clk 0:02:53.6]} 3... e5 {[%clk 0:03:01.1]}
4. dxe5 {[%clk 0:02:51.3]} 4... dxe5 {[%clk 0:03:00.5]} 5. Qxd8+ {[%clk
0:02:50.7]} 5... Kxd8 {[%clk 0:03:01.4]} 6. Bg5 {[%clk 0:02:38.8]} 6... c6
{[%clk 0:03:00.3]} 7. O-O-O+ {[%clk 0:02:37.4]} 7... Ke8 {[%clk 0:03:00.8]} 8.
f3 {[%clk 0:02:34.5]} 8... Nbd7 {[%clk 0:02:58.3]} 9. Bc4 {[%clk 0:02:33]} 9...
Bc5 {[%clk 0:02:54.1]} 10. Nge2 {[%clk 0:02:31.3]} 10... b5 {[%clk 0:02:52.4]}
11. Bb3 {[%clk 0:02:22.6]} 11... a5 {[%clk 0:02:51.4]} 12. a4 {[%clk 0:02:14.9]}
12... b4 {[%clk 0:02:48.5]} 13. Nb1 {[%clk 0:02:13.4]} 13... Ba6 {[%clk
0:02:44.4]} 14. Ng3 {[%clk 0:02:07.8]} 14... h6 {[%clk 0:02:37.3]} 15. Bd2
{[%clk 0:01:46.8]} 15... g6 {[%clk 0:02:32.7]} 16. Nf1 {[%clk 0:01:23.5]} 16...
Ke7 {[%clk 0:02:24.7]} 17. Ne3 {[%clk 0:01:22.5]} 17... Nb6 {[%clk 0:02:12.4]}
18. c3 {[%clk 0:01:03.3]} 18... Rad8 {[%clk 0:02:06.8]} 19. Rhe1 {[%clk
0:00:57.1]} 19... Rd7 {[%clk 0:01:30.8]} 20. cxb4 {[%clk 0:00:55.5]} 20... axb4
{[%clk 0:01:31.2]} 21. a5 {[%clk 0:00:55.5]} 21... Nc8 {[%clk 0:01:02.7]} 22.
Nc4 {[%clk 0:00:54.2]} 22... Bxc4 {[%clk 0:00:49.7]} 23. Bxc4 {[%clk 0:00:55.1]}
23... Nd6 {[%clk 0:00:48.3]} 24. Bf1 {[%clk 0:00:32.4]} 24... Ra7 {[%clk
0:00:48.6]} 25. a6 {[%clk 0:00:31.2]} 25... Nd7 {[%clk 0:00:46.4]} 26. b3 {[%clk
0:00:28.6]} 26... Nb5 {[%clk 0:00:43]} 27. Bxb5 {[%clk 0:00:23.4]} 27... cxb5
{[%clk 0:00:43.3]} 28. Be3 {[%clk 0:00:21.1]} 28... Bxe3+ {[%clk 0:00:40.6]} 29.
Rxe3 {[%clk 0:00:20.6]} 29... Rxa6 {[%clk 0:00:41.1]} 30. Kb2 {[%clk 0:00:20.1]}
30... Rha8 {[%clk 0:00:39.6]} 31. Red3 {[%clk 0:00:18]} 31... Ra2+ {[%clk
0:00:39.1]} 32. Kc1 {[%clk 0:00:16.7]} 32... Rc8+ {[%clk 0:00:39.6]} 0-1

[Event "*** Titled Tuesday Blitz"]
[Site "Chess.com"]
[Date "2021.03.30"]
[Round "7"]
[White "DonBroca"]
[Black "niki_2003"]
[Result "0-1"]
[WhiteElo "2227"]
[BlackElo "2043"]
[TimeControl "180+1"]
[EndTime "11:17:39 PDT"]
[Termination "niki_2003 won on time"]

1. e4 {[%clk 0:03:00.9]} 1... c6 {[%clk 0:02:57]} 2. d4 {[%clk 0:02:59.7]} 2...
d5 {[%clk 0:02:55.4]} 3. Nc3 {[%clk 0:02:59]} 3... dxe4 {[%clk 0:02:50.5]} 4.
Nxe4 {[%clk 0:02:59.9]} 4... Bf5 {[%clk 0:02:50.8]} 5. Ng3 {[%clk 0:02:50.9]}
5... Bg6 {[%clk 0:02:51.1]} 6. h4 {[%clk 0:02:50.1]} 6... h6 {[%clk 0:02:49.6]}
7. Nf3 {[%clk 0:02:51]} 7... Nf6 {[%clk 0:02:45.7]} 8. h5 {[%clk 0:02:50.5]}
8... Bh7 {[%clk 0:02:44.5]} 9. Bd3 {[%clk 0:02:50.6]} 9... Bxd3 {[%clk
0:02:43.9]} 10. Qxd3 {[%clk 0:02:51.5]} 10... e6 {[%clk 0:02:43]} 11. Ne5 {[%clk
0:02:50.7]} 11... Nbd7 {[%clk 0:02:40.2]} 12. Bf4 {[%clk 0:02:50.9]} 12... Be7
{[%clk 0:02:39.6]} 13. O-O-O {[%clk 0:02:50]} 13... O-O {[%clk 0:02:38.3]} 14.
Kb1 {[%clk 0:02:49.7]} 14... Nd5 {[%clk 0:02:37.8]} 15. Bd2 {[%clk 0:02:47.4]}
15... Nxe5 {[%clk 0:02:33.4]} 16. dxe5 {[%clk 0:02:46.7]} 16... Qc7 {[%clk
0:02:34.1]} 17. Qe2 {[%clk 0:02:36.5]} 17... Rad8 {[%clk 0:02:25.3]} 18. c4
{[%clk 0:02:12.6]} 18... Nb6 {[%clk 0:02:18.8]} 19. Bc3 {[%clk 0:01:46.6]} 19...
Na4 {[%clk 0:02:14.2]} 20. Bd4 {[%clk 0:01:42.4]} 20... c5 {[%clk 0:02:11.7]}
21. b3 {[%clk 0:01:13.7]} 21... cxd4 {[%clk 0:02:03.1]} 22. bxa4 {[%clk
0:01:14.6]} 22... Ba3 {[%clk 0:02:01.8]} 23. Ka1 {[%clk 0:01:07.3]} 23... Qa5
{[%clk 0:01:59.1]} 24. Qc2 {[%clk 0:01:00.3]} 24... Qb4 {[%clk 0:01:48]} 25. Rd3
{[%clk 0:00:52.5]} 25... Rc8 {[%clk 0:01:33.3]} 26. Rb1 {[%clk 0:00:40.2]} 26...
Qc5 {[%clk 0:01:23.8]} 27. Qb3 {[%clk 0:00:24.4]} 27... Qxe5 {[%clk 0:01:15.9]}
28. Qxa3 {[%clk 0:00:20.2]} 28... Rxc4 {[%clk 0:01:14.7]} 29. Qb3 {[%clk
0:00:13.6]} 29... Rc3 {[%clk 0:01:10]} 30. Rxc3 {[%clk 0:00:05.1]} 30... dxc3
{[%clk 0:01:09.4]} 31. Rc1 {[%clk 0:00:05.1]} 31... Rc8 {[%clk 0:01:05.9]} 32.
Qc2 {[%clk 0:00:05]} 32... Rc4 {[%clk 0:01:01.8]} 33. f3 {[%clk 0:00:04.7]}
33... Qxg3 {[%clk 0:00:59.8]} 34. Qd3 {[%clk 0:00:05]} 34... Qe5 {[%clk
0:00:54]} 35. Rc2 {[%clk 0:00:01.6]} 35... Rd4 {[%clk 0:00:53.2]} 0-1

[Event "*** Titled Tuesday Blitz"]
[Site "Chess.com"]
[Date "2021.03.30"]
[Round "7"]
[White "Aradhya2000"]
[Black "GianmarcoVaR"]
[Result "1/2-1/2"]
[WhiteElo "2584"]
[BlackElo "2751"]
[TimeControl "180+1"]
[EndTime "11:17:40 PDT"]
[Termination "Game drawn by repetition"]

1. d4 {[%clk 0:03:00.9]} 1... Nf6 {[%clk 0:02:48.2]} 2. c4 {[%clk 0:03:01.3]}
2... e6 {[%clk 0:02:47.3]} 3. Nf3 {[%clk 0:03:01.5]} 3... d5 {[%clk 0:02:46.7]}
4. Nc3 {[%clk 0:03:01.8]} 4... a6 {[%clk 0:02:46.1]} 5. cxd5 {[%clk 0:02:55.2]}
5... exd5 {[%clk 0:02:45.9]} 6. Bg5 {[%clk 0:02:55.8]} 6... Be6 {[%clk
0:02:36.5]} 7. Qb3 {[%clk 0:02:55.3]} 7... Nbd7 {[%clk 0:02:16.3]} 8. e3 {[%clk
0:02:50.8]} 8... Be7 {[%clk 0:02:12.5]} 9. Bd3 {[%clk 0:02:45]} 9... O-O {[%clk
0:01:59.4]} 10. O-O {[%clk 0:02:44.4]} 10... c5 {[%clk 0:01:58.4]} 11. dxc5
{[%clk 0:02:42.1]} 11... Nxc5 {[%clk 0:01:58.1]} 12. Qc2 {[%clk 0:02:41.9]}
12... h6 {[%clk 0:01:55.7]} 13. Bh4 {[%clk 0:02:39.8]} 13... Rc8 {[%clk
0:01:39.8]} 14. Rfd1 {[%clk 0:02:37.8]} 14... Qb6 {[%clk 0:01:32.6]} 15. Nd4
{[%clk 0:02:24.1]} 15... Nce4 {[%clk 0:01:24]} 16. Bxe4 {[%clk 0:02:17.2]} 16...
dxe4 {[%clk 0:01:20.8]} 17. Bxf6 {[%clk 0:02:16.8]} 17... Bxf6 {[%clk
0:01:21.2]} 18. Qxe4 {[%clk 0:02:16.8]} 18... Qxb2 {[%clk 0:01:03.7]} 19. Nxe6
{[%clk 0:02:13.4]} 19... Rfe8 {[%clk 0:00:59]} 20. Nd5 {[%clk 0:02:10.8]} 20...
Rxe6 {[%clk 0:00:59.1]} 21. Nxf6+ {[%clk 0:02:10.7]} 21... Qxf6 {[%clk
0:00:52.4]} 22. Qxb7 {[%clk 0:02:10]} 22... Rc2 {[%clk 0:00:52.4]} 23. Qf3
{[%clk 0:02:09.8]} 23... Qxf3 {[%clk 0:00:44.5]} 24. gxf3 {[%clk 0:02:10.7]}
24... Rg6+ {[%clk 0:00:44.3]} 25. Kf1 {[%clk 0:02:10.7]} 25... Rb6 {[%clk
0:00:41]} 26. Rdc1 {[%clk 0:01:57.1]} 26... Rxc1+ {[%clk 0:00:41.3]} 27. Rxc1
{[%clk 0:01:56.8]} 27... Rb2 {[%clk 0:00:42.2]} 28. a4 {[%clk 0:01:56]} 28...
Rb4 {[%clk 0:00:40.8]} 29. a5 {[%clk 0:01:55.2]} 29... Rb5 {[%clk 0:00:39.2]}
30. Ra1 {[%clk 0:01:53.7]} 30... g5 {[%clk 0:00:28.7]} 31. Ra4 {[%clk
0:01:52.9]} 31... Kg7 {[%clk 0:00:28.3]} 32. Kg2 {[%clk 0:01:52.5]} 32... Kg6
{[%clk 0:00:27.9]} 33. Kg3 {[%clk 0:01:52.7]} 33... Rf5 {[%clk 0:00:20.9]} 34.
e4 {[%clk 0:01:44.7]} 34... Rb5 {[%clk 0:00:20.6]} 35. f4 {[%clk 0:01:44.8]}
35... Rb3+ {[%clk 0:00:12.5]} 36. f3 {[%clk 0:01:43.8]} 36... gxf4+ {[%clk
0:00:09]} 37. Kxf4 {[%clk 0:01:43.9]} 37... Rb5 {[%clk 0:00:09.9]} 38. h4 {[%clk
0:01:42.7]} 38... f6 {[%clk 0:00:09.6]} 39. Kg4 {[%clk 0:01:38.5]} 39... Rc5
{[%clk 0:00:09.5]} 40. f4 {[%clk 0:01:35.7]} 40... h5+ {[%clk 0:00:09.2]} 41.
Kf3 {[%clk 0:01:36]} 41... Rc3+ {[%clk 0:00:09.5]} 42. Kf2 {[%clk 0:01:36.2]}
42... Rh3 {[%clk 0:00:09.6]} 43. Rc4 {[%clk 0:01:33.5]} 43... Rxh4 {[%clk
0:00:09.3]} 44. Kg3 {[%clk 0:01:33.9]} 44... Rg4+ {[%clk 0:00:08.5]} 45. Kf3
{[%clk 0:01:34.2]} 45... Rg1 {[%clk 0:00:09.1]} 46. Rc6 {[%clk 0:01:34.4]} 46...
h4 {[%clk 0:00:09]} 47. Kf2 {[%clk 0:01:30]} 47... Rg4 {[%clk 0:00:07.6]} 48.
Kf3 {[%clk 0:01:30.3]} 48... Rg3+ {[%clk 0:00:07.3]} 49. Kf2 {[%clk 0:01:30.7]}
49... Rg4 {[%clk 0:00:07.5]} 50. Kf3 {[%clk 0:01:30.8]} 50... Rg3+ {[%clk
0:00:02.9]} 51. Kf2 {[%clk 0:01:30.7]} 51... Rg4 {[%clk 0:00:02.8]} 1/2-1/2